fUST/lending_fUST_20250927
["ID","MTS","AMOUNT","RATE_DAILY","PERIOD"]
[387864525,1758934173809,-1200.0,0.0003177,3]
[387864526,1758934173830,-300.0,0.00031771,3]
[387864527,1758934173855,-180.0,0.00031771,3]
[387864528,1758934173875,-160.0,0.00031773,2]
[387864529,1758934173895,-4728.14686221,0.00031773,2]
[387864530,1758934174097,-233.04709313,0.00031773,2]
[387864531,1758934174119,-446.22121873,0.00031773,2]
[387864532,1758934176250,160.0,0.0002,7]
[387864557,1758934232193,-160.0,0.0003,10]
[387864558,1758934232202,-402.9,0.00030367,30]
[387864559,1758934232245,-597.1,0.00030367,30]
[387864560,1758934232255,-1054.00275878,0.00031773,2]
[387864561,1758934232264,-3307.4626369,0.00031773,2]
[387864562,1758934232275,-26.00599153,0.00031846,30]
[387864566,1758934238258,-269.42388655,0.00031748,2]
[387864567,1758934238268,-167.28400847,0.00031846,30]
[387864568,1758934238277,-162.0,0.00031848,2]
[387864569,1758934238287,-176.5565918,0.00031848,2]
[387864570,1758934238297,-190.34226701,0.00031848,2]
[387864571,1758934238306,-200.0,0.00031848,2]
[387864572,1758934238315,-2381.03933927,0.00031849,2]
[387864573,1758934238326,-654.21663662,0.00031849,2]
[387864574,1758934238338,-25077.19763511,0.00031849,2]
[387864575,1758934238347,-8477.56991376,0.00031849,2]
[387864576,1758934238356,-984.06,0.00031849,3]
[387864577,1758934238365,-492.03,0.00031849,3]
[387864578,1758934238374,-246.01,0.00031849,3]
[387864579,1758934238383,-738.07,0.00031849,3]
[387864580,1758934238393,-45058.24257849,0.00031849,2]
[387864581,1758934238403,-370000.0,0.00031859,2]
[387864582,1758934238412,-500.0,0.00031873,5]
[387864583,1758934238422,-500.0,0.00031873,5]
[387864584,1758934238431,-500.0,0.00031873,5]
[387864585,1758934238440,-500.0,0.00031873,5]
[387864586,1758934238449,-500.0,0.00031873,5]
[387864587,1758934238458,-480.0,0.00031956,120]
[387864588,1758934238467,-507.103,0.00031959,120]
[387864589,1758934238476,-1500.22397751,0.00032025,2]
[387864590,1758934238485,-164.7433,0.00032103,2]
[387864591,1758934238494,-341.92660139,0.00032153,2]
[387864592,1758934238504,-203.63214026,0.00032153,2]
[387864593,1758934238513,-1500.22397751,0.00032278,2]
[387864594,1758934238522,-323.54,0.000324,16]
[387864595,1758934238532,-151.0,0.000324,19]
[387864596,1758934238541,-665.75243042,0.00032421,5]
[387864597,1758934238550,-1000.0,0.00032421,5]
[387864598,1758934238559,-1000.0,0.00032421,5]
[387864599,1758934238568,-151.0,0.000325,16]
[387864600,1758934238577,-1500.22397751,0.0003253,2]
[387864601,1758934238586,-151.0,0.000326,17]
[387864602,1758934238595,-178.4813418,0.00032648,2]
[387864603,1758934238605,-151.0,0.000327,18]
[387864604,1758934238614,-514.09733986,0.00032718,30]
[387864605,1758934238623,-168.0,0.00032726,2]
[387864606,1758934238633,-3514.05670137,0.00032771,2]
[387864607,1758934238642,-1059.69623922,0.00032771,2]
[387864608,1758934238651,-1500.22397751,0.00032782,2]
[387864609,1758934238660,-7848.05718555,0.00032782,2]
[387864610,1758934238669,-151.0,0.000328,17]
[387864611,1758934238678,-159.0,0.000328,60]
[387864612,1758934238688,-615.46788251,0.00032857,2]
[387864613,1758934238697,-366.53785247,0.0003286,2]
[387864614,1758934238706,-584.828736,0.00032877,2]
[387864615,1758934238716,-160.77352352,0.00032878,10]
[387864616,1758934238725,-4138.64291433,0.00032882,2]
[387864617,1758934238734,-1794877.64787541,0.00032882,20]
[387864619,1758934242041,-97.83139316,0.00032882,20]
[387864620,1758934242057,-19330.55412888,0.00032882,20]
[387864621,1758934242068,-2140.9576,0.00032882,20]
[387864622,1758934242080,-870.4725065,0.00032882,20]
[387864625,1758934243441,-164.7433,0.00032103,2]
[387864626,1758934243451,-3307.46263689,0.00032278,2]
[387864627,1758934243461,-3307.46263689,0.00032782,2]
[387864628,1758934243470,-38966.57684599,0.00032882,20]
[387864629,1758934243482,-1065.17377204,0.00032882,20]
[387864633,1758934246212,-28848.99211768,0.00032882,20]
[387864634,1758934246228,-21833.7512967,0.00032882,20]
[387866547,1758934404932,160.2,0.000252,3]
[387866556,1758934781960,417.15472785,0.00025205,2]
[387866561,1758934819525,-153.03795191,0.00027388,5]
[387866586,1758935020120,176.0,0.00022986,8]
[387866595,1758935048209,-334.5258603,0.00028465,2]
[387866610,1758935153846,-227.69861352,0.00028465,2]
[387866611,1758935155085,-252.15832643,0.00028465,2]
[387866612,1758935155788,-42.32186583,0.00028465,2]
[387866637,1758935225082,-306.0,0.00031368,2]
[387866638,1758935251612,160.0,0.00025205,2]
[387866639,1758935279893,178.06,0.00018182,2]
[387866640,1758935287194,199.99,0.00025205,2]
[387866671,1758935333760,162.0,0.00023014,8]
[387866675,1758935340415,192.525954,0.00025205,2]
[387866681,1758935348080,-163.0,0.00029041,32]
[387866682,1758935348281,-1000.0,0.00030657,30]
[387866683,1758935348302,-28.49592,0.00031368,2]
[387866684,1758935348322,-248.87257654,0.00031647,3]
[387866742,1758935432363,-167.24796,0.00030708,2]
[387866744,1758935432372,-15861.83733096,0.000315,2]
[387866750,1758935432424,-19445.13590658,0.000315,2]
[387866752,1758935432435,-7343.11480278,0.000315,2]
[387866755,1758935432447,-3368.17752719,0.000315,2]
[387866757,1758935432456,-620.0,0.00031647,3]
[387866759,1758935432465,-181.0,0.00031647,3]
[387866761,1758935432474,-300.0,0.00031647,2]
[387866763,1758935432483,-3506.99521796,0.00031648,2]
[387866765,1758935432492,-188.87846761,0.00031648,2]
[387866767,1758935432502,-500.0,0.00031732,2]
[387866769,1758935432511,-500.0,0.00031732,2]
[387866772,1758935432520,-500.0,0.00031732,2]
[387866774,1758935432530,-500.0,0.00031732,2]
[387866776,1758935432539,-500.0,0.00031732,2]
[387866778,1758935432548,-296.46095152,0.00031732,2]
[387866780,1758935432557,-15039.42798493,0.00031733,2]
[387866782,1758935432568,-956.23404994,0.00031733,2]
[387866784,1758935432579,-1797.96184021,0.00031733,2]
[387866786,1758935432590,-314.5842607,0.00031733,2]
[387866789,1758935432612,-5690.2759714,0.00031733,2]
[387866791,1758935432621,-161.86,0.00031734,2]
[387866793,1758935432630,-154.632,0.00031736,30]
[387866795,1758935432639,-574.03,0.00031738,3]
[387866797,1758935432649,-287.01,0.00031738,3]
[387866799,1758935432658,-861.08,0.00031738,3]
[387866801,1758935432667,-13529.1183003,0.00031738,2]
[387866803,1758935432676,-4257.19584311,0.00031738,2]
[387866805,1758935432685,-29564.13602738,0.00031748,2]
[387866808,1758935432696,-172293.20814366,0.00031748,2]
[387866810,1758935432707,-168142.65582896,0.00031748,2]
[387866812,1758935432716,-500.0,0.00031748,10]
[387866814,1758935432726,-415.49,0.00031758,2]
[387866816,1758935432735,-495.9798274,0.00031773,5]
[387866818,1758935432745,-500.0,0.00031773,5]
[387866820,1758935432754,-500.0,0.00031773,2]
[387866822,1758935432764,-505.61877837,0.00031773,5]
[387866824,1758935432773,-500.0,0.00031773,5]
[387866826,1758935432783,-500.0,0.00031773,5]
[387866828,1758935432794,-500.0,0.00031773,5]
[387866830,1758935432803,-500.0,0.00031773,5]
[387866832,1758935432813,-500.0,0.00031773,2]
[387866834,1758935432822,-500.0,0.00031773,5]
[387866836,1758935432832,-500.0,0.00031773,5]
[387866838,1758935432841,-500.0,0.00031773,5]
[387866840,1758935432854,-500.0,0.00031773,5]
[387866842,1758935432866,-500.0,0.00031773,5]
[387866844,1758935432875,-500.0,0.00031773,5]
[387866846,1758935432884,-496.02337041,0.00031773,5]
[387866848,1758935432893,-500.0,0.00031773,5]
[387866850,1758935432903,-500.0,0.00031773,5]
[387866852,1758935432912,-524.12572621,0.00031773,5]
[387866854,1758935432921,-500.0,0.00031773,5]
[387866856,1758935432930,-500.0,0.00031773,5]
[387866858,1758935432940,-506.33177552,0.00031773,5]
[387866860,1758935432949,-500.0,0.00031773,5]
[387866862,1758935432959,-151.0,0.00031773,5]
[387866864,1758935432968,-151.0,0.00031773,2]
[387866866,1758935432977,-500.0,0.00031773,2]
[387866868,1758935432986,-151.0,0.00031773,5]
[387866870,1758935432995,-500.0,0.00031773,5]
[387866872,1758935433004,-151.0,0.00031773,5]
[387866874,1758935433014,-151.0,0.00031773,5]
[387866876,1758935433023,-151.0,0.00031773,5]
[387866878,1758935433033,-151.0,0.00031773,5]
[387866880,1758935433042,-151.0,0.00031773,5]
[387866882,1758935433051,-151.0,0.00031773,5]
[387866884,1758935433061,-151.0,0.00031773,5]
[387866886,1758935433070,-303.95004006,0.00031822,2]
[387866888,1758935433079,-960.0,0.00031848,120]
[387866890,1758935433088,-1000.0,0.00031858,2]
[387866892,1758935433098,-1000.0,0.00031858,2]
[387866894,1758935433108,-1000.0,0.00031858,2]
[387866896,1758935433117,-1000.0,0.00031858,2]
[387866898,1758935433127,-1000.0,0.00031858,2]
[387866900,1758935433136,-1000.0,0.00031858,2]
[387866902,1758935433146,-1381.51259962,0.00031948,2]
[387866904,1758935433158,-551.21858614,0.00031948,2]
[387866906,1758935433167,-608.17083473,0.00031948,2]
[387866908,1758935433177,-500.0,0.00031958,2]
[387866910,1758935433187,-500.0,0.00031958,2]
[387866912,1758935433196,-151.0,0.00031958,2]
[387866914,1758935433206,-151.0,0.00031958,2]
[387866916,1758935433215,-151.0,0.00031958,2]
[387866918,1758935433225,-219.23198078,0.00031958,2]
[387866920,1758935433235,-189.47896245,0.00031959,2]
[387866922,1758935433247,-281.76102775,0.00031959,2]
[387867399,1758935438227,-500.0,0.00031499,2]
[387867401,1758935438236,-500.0,0.00031499,2]
[387867403,1758935438245,-500.0,0.00031499,2]
[387867405,1758935438255,-200.0,0.00031499,2]
[387867407,1758935438264,-500.0,0.00031499,2]
[387867409,1758935438273,-585.37697188,0.00031499,2]
[387867411,1758935438282,-487.83881509,0.00031499,2]
[387867413,1758935438293,-16.06259248,0.00031499,2]
[387867415,1758935438302,-500.0,0.00031499,2]
[387867417,1758935438311,-500.0,0.00031499,2]
[387867419,1758935438320,-392.33341384,0.00031499,2]
[387867421,1758935438329,-488.54550296,0.00031732,2]
[387867423,1758935438340,-11.45449704,0.00031732,2]
[387867425,1758935438348,-500.0,0.00031732,2]
[387867427,1758935438357,-200.34874047,0.00031732,2]
[387867429,1758935438368,-299.65125953,0.00031732,2]
[387867431,1758935438377,-166.13,0.00031738,10]
[387867433,1758935438387,-622.92513425,0.00031959,2]
[387867435,1758935438396,-125.97337383,0.00031959,2]
[387867437,1758935438410,-525.64947501,0.00031959,2]
[387867439,1758935438419,-319.99999999,0.00032,120]
[387867441,1758935438429,-161.86,0.00032008,2]
[387867443,1758935438438,-500.0,0.00032047,5]
[387867445,1758935438448,-198.91630416,0.00032047,5]
[387867447,1758935438457,-500.0,0.00032047,2]
[387867449,1758935438466,-151.0,0.00032047,5]
[387867451,1758935438476,-500.0,0.00032047,5]
[387867453,1758935438491,-151.0,0.00032047,5]
[387867455,1758935438500,-151.0,0.00032047,5]
[387867457,1758935438509,-151.0,0.00032047,5]
[387867459,1758935438518,-689.57422084,0.00032225,2]
[387867462,1758935438530,-2817.42099711,0.00032225,2]
[387867464,1758935438539,-500.0,0.00032232,2]
[387867466,1758935438548,-151.0,0.00032232,2]
[387867468,1758935438557,-301.67561036,0.00032232,2]
[387867470,1758935438566,-151.0,0.00032232,2]
[387867472,1758935438576,-161.86203526,0.00032282,2]
[387867474,1758935438585,-168.0,0.00032311,2]
[387867476,1758935438594,-1000.0,0.00032321,2]
[387867478,1758935438605,-1000.0,0.00032321,5]
[387867480,1758935438614,-198.0,0.00032321,2]
[387867482,1758935438623,-151.0,0.00032321,5]
[387867484,1758935438632,-302.0,0.00032321,5]
[387867486,1758935438642,-151.0,0.00032321,5]
[387867487,1758935438652,-198.0,0.00032321,5]
[387867489,1758935438661,-151.0,0.00032321,5]
[387867492,1758935438672,-168.0,0.00032411,2]
[387867493,1758935438681,-500.0,0.00032506,2]
[387867495,1758935438690,-168.0,0.00032586,2]
[387867497,1758935438700,-216.99034262,0.00032595,5]
[387867499,1758935438710,-210.18163937,0.00032595,5]
[387867501,1758935438720,-222.4412413,0.00032595,5]
[387867503,1758935438729,-3914.6644966,0.00032697,2]
[387867505,1758935438738,-500.0,0.0003278,2]
[387867507,1758935438747,-168.0,0.00032788,2]
[387867509,1758935438756,-159.0,0.000328,30]
[387867511,1758935438765,-3506.99521795,0.00032802,2]
[387867513,1758935438775,-7063.25146695,0.00032802,2]
[387867515,1758935438784,-168.0,0.00032817,2]
[387867517,1758935438793,-15461.8494861,0.0003287,2]
[387867519,1758935438802,-4865.36667784,0.0003287,2]
[387867521,1758935438813,-500.0,0.00032873,5]
[387867523,1758935438822,-500.0,0.00032873,5]
[387867525,1758935438832,-355.727614,0.00032873,5]
[387867527,1758935438841,-500.0,0.00032873,5]
[387867529,1758935438851,-500.0,0.00032873,5]
[387867531,1758935438860,-500.0,0.00032873,5]
[387867533,1758935438869,-504.8700828,0.00032873,5]
[387867535,1758935438880,-500.0,0.00032873,3]
[387867537,1758935438895,-500.0,0.00032873,5]
[387867539,1758935438905,-500.23913333,0.00032873,5]
[387867541,1758935438915,-500.0,0.00032873,5]
[387867543,1758935438924,-323.72921993,0.00032873,5]
[387867545,1758935438935,-500.0,0.00032873,5]
[387867547,1758935438944,-500.0,0.00032873,5]
[387867549,1758935438953,-555.587299,0.00032877,2]
[387867550,1758935438964,-200.58178861,0.00032879,10]
[387867552,1758935438973,-356911.66725592,0.0003288,15]
[387867554,1758935438983,-168.0,0.00032897,2]
[387867556,1758935438992,-151.0,0.00032901,7]
[387867558,1758935439001,-151.0,0.00032901,7]
[387867560,1758935439010,-151.0,0.00032901,7]
[387867562,1758935439020,-151.0,0.00032901,7]
[387867564,1758935439030,-151.0,0.00032901,7]
[387867566,1758935439039,-151.0,0.00032901,7]
[387867568,1758935439048,-151.0,0.00032901,7]
[387867570,1758935439057,-166.932687,0.00032901,7]
[387867572,1758935439066,-151.0,0.00032901,7]
[387867574,1758935439076,-151.0,0.00032901,7]
[387867576,1758935439085,-151.0,0.00032901,7]
[387867578,1758935439094,-151.0,0.00032901,7]
[387867580,1758935439105,-151.0,0.00032901,7]
[387867582,1758935439115,-151.0,0.00032901,7]
[387867584,1758935439124,-151.0,0.00032901,7]
[387867586,1758935439133,-151.0,0.00032901,7]
[387867588,1758935439142,-529.266324,0.00032901,7]
[387867590,1758935439151,-151.0,0.00032901,7]
[387867592,1758935439160,-529.266324,0.00032901,7]
[387867594,1758935439169,-529.266324,0.00032901,7]
[387867596,1758935439179,-529.266324,0.00032901,7]
[387867598,1758935439188,-151.0,0.00032901,7]
[387867600,1758935439197,-151.0,0.00032901,7]
[387867602,1758935439206,-151.0,0.00032901,7]
[387867604,1758935439215,-151.0,0.00032901,7]
[387867606,1758935439225,-151.0,0.00032901,7]
[387867607,1758935439234,-151.0,0.00032901,7]
[387867609,1758935439243,-151.0,0.00032901,7]
[387867611,1758935439252,-222.88213621,0.00032901,7]
[387867613,1758935439261,-171.30341393,0.00032901,7]
[387867615,1758935439271,-500.0,0.00032901,7]
[387867617,1758935439280,-500.0,0.00032901,7]
[387867619,1758935439289,-500.0,0.00032901,7]
[387867621,1758935439298,-500.0,0.00032901,7]
[387867623,1758935439308,-525.07555356,0.00032901,7]
[387867625,1758935439317,-500.0,0.00032901,7]
[387867627,1758935439326,-500.0,0.00032901,7]
[387867629,1758935439336,-500.0,0.00032901,7]
[387867631,1758935439345,-500.0,0.00032901,7]
[387867633,1758935439355,-500.0,0.00032901,7]
[387867635,1758935439364,-500.0,0.00032901,7]
[387867637,1758935439373,-500.0,0.00032901,7]
[387867638,1758935439382,-500.0,0.00032901,7]
[387867640,1758935439391,-500.0,0.00032901,7]
[387867642,1758935439400,-500.0,0.00032901,7]
[387867644,1758935439410,-500.0,0.00032901,7]
[387867646,1758935439419,-500.0,0.00032901,7]
[387867648,1758935439428,-500.0,0.00032901,7]
[387867650,1758935439438,-500.0,0.00032901,7]
[387867652,1758935439447,-500.0,0.00032901,7]
[387867654,1758935439456,-265.81482376,0.00032901,7]
[387867656,1758935439466,-151.0,0.00032902,7]
[387867658,1758935439475,-151.0,0.00032902,7]
[387867660,1758935439484,-151.0,0.00032902,7]
[387867662,1758935439493,-151.0,0.00032902,7]
[387867664,1758935439502,-151.0,0.00032902,7]
[387867666,1758935439511,-151.0,0.00032902,7]
[387867668,1758935439520,-151.0,0.00032902,7]
[387867669,1758935439530,-151.0,0.00032902,7]
[387867671,1758935439539,-151.0,0.00032902,7]
[387867673,1758935439548,-151.0,0.00032902,7]
[387867674,1758935439561,-151.0,0.00032902,7]
[387867675,1758935439570,-151.0,0.00032902,7]
[387867676,1758935439580,-151.0,0.00032902,7]
[387867677,1758935439590,-400.585397,0.00032902,7]
[387867678,1758935439599,-400.585397,0.00032902,7]
[387867679,1758935439609,-400.585397,0.00032902,7]
[387867680,1758935439619,-400.585397,0.00032902,7]
[387867681,1758935439629,-2517.00967201,0.00032902,2]
[387867682,1758935439638,-1489991.07398752,0.00032902,20]
[387867683,1758935439651,-789.01218507,0.00032902,20]
[387867684,1758935439662,-982.6,0.00032902,20]
[387867685,1758935439673,-6633.77660516,0.00032902,20]
[387867686,1758935439684,-34609.7480143,0.00032902,20]
[387867687,1758935439696,-12581.3758119,0.00032902,20]
[387867688,1758935439707,-5631.39869798,0.00032902,20]
[387867689,1758935439722,-71425.80512599,0.00032902,20]
[387867690,1758935439734,-30247.61627482,0.00032902,20]
[387867808,1758935440489,-151.0,0.00031773,5]
[387867812,1758935440499,-151.0,0.00032047,5]
[387867815,1758935440508,-151.0,0.00032321,5]
[387867818,1758935440519,-151.0,0.00032595,5]
[387867821,1758935440528,-199.58499236,0.00032869,5]
[387867823,1758935440544,-151.0,0.00032902,7]
[387867825,1758935440555,-30480.58846065,0.00032902,20]
[387868121,1758935442321,-6505.44132779,0.00032902,20]
[387868142,1758935444594,-160.93469155,0.00031773,5]
[387868143,1758935444605,-151.0,0.00031773,5]
[387868144,1758935444615,-151.0,0.00031773,5]
[387868145,1758935444625,-198.0,0.00032047,5]
[387868146,1758935444634,-826.86545273,0.00032902,20]
[387868147,1758935444667,-13.86261861,0.00032902,20]
[387868148,1758935444678,-430.19384004,0.00032902,20]
[387868153,1758935446538,-500.0,0.00031773,5]
[387868154,1758935446548,-121.74251151,0.00032047,5]
[387868155,1758935446620,-53.10763104,0.00032047,5]
[387868156,1758935446713,-325.14985745,0.00032047,5]
[387868157,1758935446723,-353.78012991,0.00032321,5]
[387868158,1758935446771,-146.21987009,0.00032321,5]
[387868159,1758935446781,-500.0,0.00032595,5]
[387868160,1758935446791,-500.0,0.00032869,5]
[387868161,1758935446801,-151.0,0.00032902,7]
[387868162,1758935446810,-219.691019,0.00032902,7]
[387868163,1758935446821,-38586.0948016,0.00032902,20]
[387873681,1758936280403,-182.35915799,0.00029,10]
[387873682,1758936282375,-51.35486278,0.00029,10]
[387873685,1758936358449,-291.46989257,0.0003036,2]
[387873686,1758936359919,-323.36691355,0.0003036,2]
[387873688,1758936366198,-166.20466101,0.0003036,2]
[387873689,1758936366220,-125.26523156,0.00030524,2]
[387873690,1758936367859,-41.98272944,0.00030524,2]
[387873691,1758936367881,-135.12629237,0.00030632,30]
[387873692,1758936370480,-332.6273651,0.00030632,30]
[387873693,1758936375265,-331.16431668,0.00030632,30]
[387873694,1758936402100,-237.82229008,0.0003036,2]
[387873695,1758936404585,-227.32182254,0.0003036,2]
[387873696,1758936404609,-43.85454136,0.00030632,30]
[387873698,1758936437085,-157.22748449,0.00030632,30]
[387873699,1758936437105,-250.0,0.00031433,2]
[387873700,1758936437126,-0.47251551,0.00031573,2]
[387873702,1758936469833,252.61675887,0.000209,2]
[387873704,1758936474269,3529.83651492,0.00018,2]
[387873706,1758936483215,501.42,0.00032871,60]
[387873707,1758936497266,6217.55672621,0.00018,2]
[387873708,1758936497289,307.66130285,0.00018,2]
[387873709,1758936501499,273.05038646,0.00021,2]
[387873711,1758936515808,2432.13031286,0.00015,2]
[387873716,1758936521770,663.81953528,0.000245,2]
[387873718,1758936523707,1085.28785919,0.000215,2]
[387873725,1758936623812,777.61596432,0.00028465,2]
[387873769,1758936632643,-269.41841245,0.000315,2]
[387873771,1758936632655,-130.08158755,0.000315,2]
[387873773,1758936632665,-196.09896932,0.00031573,2]
[387873775,1758936632676,-218.33206667,0.00031573,2]
[387873777,1758936632685,-999.54435551,0.00031573,2]
[387873779,1758936632694,-300.0,0.000316,2]
[387873781,1758936632703,-1000.0,0.0003163,2]
[387873783,1758936632713,-1000.0,0.0003163,2]
[387873785,1758936632722,-998.7665797,0.0003163,2]
[387873787,1758936632731,-151.0,0.0003163,2]
[387873789,1758936632740,-151.0,0.0003163,2]
[387873791,1758936632749,-153.40263296,0.0003163,2]
[387873793,1758936632759,-250.0,0.0003163,2]
[387873795,1758936632768,-250.0,0.0003163,2]
[387873797,1758936632777,-250.0,0.0003163,2]
[387873799,1758936632787,-250.0,0.0003163,2]
[387873801,1758936632796,-214.52828853,0.0003163,2]
[387873803,1758936632806,-500.0,0.0003163,2]
[387873805,1758936632815,-500.0,0.0003163,2]
[387873807,1758936632825,-500.0,0.0003163,2]
[387873809,1758936632834,-1001.0,0.00031637,3]
[387873811,1758936632843,-287.01,0.00031638,3]
[387873813,1758936632853,-239.17,0.00031638,3]
[387873815,1758936632863,-717.56,0.00031638,3]
[387873817,1758936632873,-2705.82366005,0.00031638,2]
[387873819,1758936632882,-848.59447372,0.00031638,2]
[387873821,1758936632892,-19131.3208619,0.00031645,2]
[387873823,1758936632901,-500.0,0.00031645,2]
[387873825,1758936632911,-500.0,0.00031645,2]
[387873827,1758936632920,-500.0,0.00031645,2]
[387873829,1758936632930,-500.0,0.00031645,2]
[387873832,1758936632939,-500.0,0.00031645,2]
[387873834,1758936632949,-500.0,0.00031645,2]
[387873836,1758936632958,-500.0,0.00031645,2]
[387873838,1758936632968,-327.13891468,0.00031645,2]
[387873840,1758936632978,-304.12792425,0.00031645,2]
[387873842,1758936632987,-500.0,0.00031645,2]
[387873844,1758936632997,-154.632,0.00031647,30]
[387873846,1758936633007,-32137.08849763,0.00031648,2]
[387873848,1758936633019,-472.57408259,0.00031648,2]
[387873851,1758936633038,-1401.02083165,0.00031648,2]
[387873854,1758936633049,-198991.81,0.00031648,2]
[387873856,1758936633060,-22851.44622392,0.00031648,2]
[387874383,1758936638541,-330.57859553,0.0003163,2]
[387874385,1758936638552,-169.42140447,0.0003163,2]
[387874386,1758936638562,-500.0,0.0003163,2]
[387874388,1758936638572,-159.70826417,0.0003163,2]
[387874391,1758936638583,-340.29173583,0.0003163,2]
[387874393,1758936638592,-500.0,0.0003163,2]
[387874394,1758936638601,-500.0,0.0003163,2]
[387874396,1758936638610,-500.0,0.0003163,2]
[387874399,1758936638620,-500.0,0.0003163,2]
[387874401,1758936638629,-500.0,0.0003163,2]
[387874403,1758936638639,-114146.06036421,0.00031648,2]
[387874404,1758936638648,-603.63899519,0.00031673,5]
[387874407,1758936638659,-500.0,0.00031673,5]
[387874408,1758936638668,-500.0,0.00031673,5]
[387874411,1758936638678,-334.24756958,0.00031673,5]
[387874412,1758936638688,-500.0,0.00031673,5]
[387874414,1758936638697,-500.0,0.00031673,5]
[387874416,1758936638707,-500.0,0.00031673,5]
[387874418,1758936638717,-500.0,0.00031673,5]
[387874420,1758936638727,-500.0,0.00031673,5]
[387874422,1758936638737,-500.0,0.00031673,5]
[387874424,1758936638747,-474.8624388,0.00031673,5]
[387874426,1758936638756,-500.0,0.00031673,5]
[387874428,1758936638765,-502.18387094,0.00031673,5]
[387874431,1758936638775,-500.0,0.00031673,3]
[387874432,1758936638784,-500.0,0.00031673,5]
[387874435,1758936638794,-500.0,0.00031673,5]
[387874436,1758936638803,-500.0,0.00031673,5]
[387874439,1758936638812,-500.0,0.00031673,5]
[387874440,1758936638822,-501.18299892,0.00031673,5]
[387874442,1758936638831,-1000.0,0.00031733,120]
[387874444,1758936638841,-440.0,0.0003187,120]
[387874446,1758936638851,-500.0,0.0003187,120]
[387874449,1758936638861,-414.43103596,0.00031873,2]
[387874450,1758936638870,-168.0,0.00031879,2]
[387874452,1758936638881,-228.75836706,0.00032,120]
[387874454,1758936638890,-217.99592756,0.00032,120]
[387874456,1758936638899,-168.0,0.00032043,2]
[387874458,1758936638911,-547.11007211,0.00032107,2]
[387874460,1758936638920,-350.96711208,0.00032107,2]
[387874462,1758936638930,-401.10527095,0.00032107,2]
[387874464,1758936638939,-500.0,0.00032144,120]
[387874466,1758936638948,-414.43103596,0.00032172,2]
[387874468,1758936638958,-999.54435551,0.00032173,2]
[387874470,1758936638967,-500.0,0.00032221,5]
[387874472,1758936638976,-500.0,0.00032221,5]
[387874474,1758936638985,-500.0,0.00032221,5]
[387874476,1758936638994,-500.0,0.00032221,5]
[387874478,1758936639003,-500.0,0.00032221,5]
[387874480,1758936639013,-1000.0,0.00032221,5]
[387874482,1758936639022,-500.0,0.00032221,5]
[387874484,1758936639031,-500.0,0.00032221,5]
[387874485,1758936639041,-500.0,0.00032221,5]
[387874487,1758936639051,-500.0,0.00032221,3]
[387874489,1758936639059,-500.0,0.00032221,5]
[387874491,1758936639068,-500.0,0.00032221,5]
[387874493,1758936639078,-228.75836706,0.000323,120]
[387874495,1758936639087,-500.0,0.00032418,120]
[387874497,1758936639096,-414.43103596,0.00032472,2]
[387874499,1758936639106,-972.64012819,0.00032593,2]
[387874501,1758936639115,-228.75836706,0.000326,120]
[387874503,1758936639124,-508.06788677,0.00032692,120]
[387874505,1758936639133,-2746.63359171,0.00032723,2]
[387874507,1758936639144,-168.0,0.00032726,2]
[387874509,1758936639153,-175.80869955,0.00032771,2]
[387874511,1758936639164,-414.43103596,0.00032771,2]